lending/lending_fUSD_20240705
["ID","MTS","AMOUNT","RATE_DAILY","PERIOD"]
[331274404,1720170648281,-237.024668,0.00022198,2]
[331274406,1720170648290,-171.900128,0.00022198,2]
[331274407,1720170648299,-187.833063,0.00022198,2]
[331274408,1720170648309,-1988.595877,0.00022198,2]
[331274409,1720170648319,-2751.640942,0.00022198,2]
[331274410,1720170648328,-385.954914,0.00022198,2]
[331274411,1720170648339,-500.0,0.00022198,2]
[331274412,1720170648348,-978.54130028,0.000222,2]
[331274413,1720170648358,-500.0,0.00022206,2]
[331274414,1720170648371,-150.83,0.0002221,2]
[331274415,1720170648380,-1487.42928624,0.00022211,2]
[331274416,1720170648391,-500.0,0.00022215,2]
[331274417,1720170648400,-32761.11200385,0.0002222,2]
[331274418,1720170648411,-160.0,0.00022223,2]
[331274419,1720170648421,-500.0,0.00022224,2]
[331274420,1720170648431,-504.16691564,0.00022227,2]
[331274421,1720170648442,-500.0,0.00022233,2]
[331274422,1720170648452,-500.0,0.00022242,2]
[331274423,1720170648462,-500.0,0.0002225,2]
[331274424,1720170648472,-154.08599619,0.00022251,2]
[331274425,1720170648482,-500.0,0.00022259,2]
[331274426,1720170648492,-1539.08235498,0.00022261,2]
[331274427,1720170648502,-500.0,0.00022268,2]
[331274428,1720170648513,-500.0,0.00022277,2]
[331274429,1720170648522,-500.0,0.00022277,2]
[331274430,1720170648534,-154.12287166,0.00022285,2]
[331274431,1720170648544,-500.0,0.00022286,2]
[331274432,1720170648554,-500.0,0.00022286,2]
[331274433,1720170648564,-25570.14370771,0.00022293,2]
[331274434,1720170648575,-500.0,0.00022294,2]
[331274435,1720170648585,-500.0,0.00022294,2]
[331274436,1720170648595,-500.0,0.00022303,2]
[331274437,1720170648605,-500.0,0.00022303,2]
[331274438,1720170648615,-500.0,0.00022312,2]
[331274441,1720170648632,-500.0,0.00022312,2]
[331274444,1720170648642,-185.66455591,0.00022314,2]
[331274446,1720170648653,-1000.0,0.00022317,2]
[331274448,1720170648663,-500.0,0.00022321,2]
[331274449,1720170648673,-500.0,0.00022321,2]
[331274451,1720170648683,-2000.0,0.00022323,2]
[331274453,1720170648692,-500.0,0.0002233,2]
[331274455,1720170648702,-500.0,0.0002233,2]
[331274457,1720170648715,-500.0,0.00022338,2]
[331274458,1720170648725,-500.0,0.00022338,2]
[331274459,1720170648735,-500.0,0.00022347,2]
[331274460,1720170648745,-500.0,0.00022347,2]
[331274461,1720170648755,-500.0,0.00022356,2]
[331274462,1720170648764,-500.0,0.00022356,2]
[331274463,1720170648774,-500.0,0.00022365,2]
[331274464,1720170648788,-500.0,0.00022365,2]
[331274465,1720170648799,-153.89692164,0.00022367,2]
[331274466,1720170648809,-500.0,0.00022374,2]
[331274467,1720170648820,-500.0,0.00022374,2]
[331274468,1720170648832,-500.0,0.00022374,2]
[331274469,1720170648842,-500.0,0.00022382,2]
[331274470,1720170648852,-500.0,0.00022382,2]
[331274471,1720170648861,-500.0,0.00022382,2]
[331274472,1720170648871,-500.0,0.00022382,2]
[331274473,1720170648882,-500.0,0.00022391,2]
[331274474,1720170648891,-500.0,0.00022391,2]
[331274475,1720170648901,-500.0,0.00022391,2]
[331274476,1720170648911,-500.0,0.00022391,2]
[331274477,1720170648921,-500.0,0.00022391,2]
[331274478,1720170648931,-1000.0,0.000224,2]
[331274479,1720170648942,-1000.0,0.000224,2]
[331274480,1720170648951,-1000.0,0.000224,2]
[331274481,1720170648961,-1000.0,0.000224,2]
[331274482,1720170648971,-1000.0,0.000224,2]
[331274483,1720170648981,-1000.0,0.000224,2]
[331274484,1720170648991,-1000.0,0.000224,2]
[331274485,1720170649001,-1000.0,0.000224,2]
[331274486,1720170649010,-1000.0,0.000224,2]
[331274487,1720170649020,-1000.0,0.000224,2]
[331274488,1720170649032,-500.0,0.000224,2]
[331274489,1720170649042,-500.0,0.000224,2]
[331274490,1720170649054,-500.0,0.000224,2]
[331274491,1720170649064,-500.0,0.000224,2]
[331274492,1720170649074,-500.0,0.000224,2]
[331274493,1720170649084,-5300.0,0.000224,8]
[331274494,1720170649243,-160.0,0.00022402,2]
[331274495,1720170649253,-152.25934322,0.00022404,2]
[331274496,1720170649264,-160.0,0.00022411,2]
[331274497,1720170649274,-154.08599619,0.00022461,2]
[331274498,1720170649290,-1000.0,0.00022465,6]
[331274499,1720170649301,-1539.08235498,0.00022471,2]
[331274500,1720170649311,-150.0,0.00022495,2]
[331274501,1720170649320,-1000.0,0.000225,8]
[331274502,1720170649332,-153.89692164,0.00022523,2]
[331274503,1720170649342,-680.88614568,0.00022524,2]
[331274504,1720170649351,-504.16691564,0.00022558,2]
[331274505,1720170649360,-680.88614568,0.00022593,2]
[331274506,1720170649370,-1000.0,0.000226,8]
[331274507,1720170649380,-1539.08235498,0.0002268,2]
[331274508,1720170649389,-151.70134448,0.00022698,2]
[331274509,1720170649398,-1000.0,0.00022699,2]
[331274510,1720170649408,-1000.0,0.000227,8]
[331274511,1720170649418,-155.52921053,0.00022733,2]
[331274512,1720170649428,-1000.0,0.00022739,8]
[331274513,1720170649438,-166.66666666,0.00022759,2]
[331274514,1720170649448,-3309.99,0.000228,2]
[331274515,1720170649458,-100000.0,0.000228,2]
[331274516,1720170649467,-1000.0,0.000228,8]
[331274517,1720170649477,-2258.0,0.00022818,2]
[331274518,1720170649486,-800.0,0.00022849,2]
[331274519,1720170649496,-800.0,0.00022849,2]
[331274520,1720170649505,-550.0,0.00022879,2]
[331274521,1720170649515,-154.12287166,0.00022885,2]
[331274522,1720170649525,-185.66455591,0.0002289,2]
[331274523,1720170649538,-1539.08235498,0.0002289,2]
[331274524,1720170649548,-504.16691564,0.0002289,2]
[331274525,1720170649558,-163.72600367,0.0002289,2]
[331274526,1720170649568,-4931.19788666,0.0002289,2]
[331274527,1720170649577,-2000.0,0.000229,2]
[331274528,1720170649587,-1535.0,0.000229,8]
[331274529,1720170649597,-1084.525,0.00022906,2]
[331274530,1720170649607,-238.76450103,0.0002295,2]
[331274531,1720170649616,-150.0,0.00022974,2]
[331274532,1720170649631,-229.97062729,0.0002298,2]
[331274533,1720170649641,-374766.62873553,0.0002298,2]
[331274534,1720170649651,-229.0,0.00022989,2]
[331274535,1720170649660,-216.0,0.00022989,2]
[331274536,1720170649671,-216.0,0.00022989,2]
[331274537,1720170649680,-216.0,0.00022989,2]
[331274538,1720170649690,-216.0,0.00022989,2]
[331274539,1720170649701,-216.0,0.00022989,2]
[331274540,1720170649711,-216.0,0.00022989,2]
[331274541,1720170649721,-216.0,0.00022989,2]
[331274542,1720170649731,-216.0,0.00022989,2]
[331274543,1720170649741,-216.0,0.00022989,2]
[331274544,1720170649751,-216.0,0.00022989,2]
[331274545,1720170649760,-365.90368394,0.00022989,2]
[331274546,1720170649770,-62140.84231965,0.0002299,7]
[331274547,1720170649783,-1346.72252322,0.0002299,5]
[331274548,1720170649792,-103769.30708341,0.0002299,5]
[331274549,1720170649806,-28409.82160016,0.0002299,5]
[331274550,1720170649818,-432.383,0.0002299,5]
[331274551,1720170649830,-334699.00209902,0.0002299,5]
[331274552,1720170651810,-307.0223437,0.0002299,5]
[331274553,1720170651821,-709.8,0.0002299,5]
[331274559,1720170738667,-430.89547468,0.00012314,2]
[331274560,1720170797763,-229.5843874,0.00012314,2]
[331274561,1720170806081,-199.31319796,0.00012314,2]
[331274562,1720170807758,-300.51199197,0.00012314,2]
[331274564,1720170900416,-301.33741986,0.00012314,2]
[331274565,1720170951119,599.0,0.00032268,30]
[331274566,1720170957360,150.0,0.00011199,2]
[331274567,1720170958139,150.0,0.00011199,2]
[331274568,1720170958646,150.0,0.00011199,2]
[331274569,1720170958937,1290.34138626,0.00011199,2]
[331274570,1720170960387,5100.95094263,0.00011199,2]
[331274571,1720170960924,4743.23021173,0.00011199,2]
[331274572,1720170961917,5441.80096659,0.00011199,2]
[331274573,1720170962162,4655.67434483,0.00011199,2]
[331274575,1720171045848,-164.81,0.00020214,30]
[331274576,1720171045938,-668.7275497,0.00025,30]
[331274577,1720171046001,-293.13094844,0.0002739,30]
[331274578,1720171046079,-381.39233305,0.0003,30]
[331274579,1720171046167,-1000.0,0.00030986,30]
[331274580,1720171046623,-151.0,0.0003219,30]
[331274581,1720171047784,-1425.18957857,0.00040054,30]
[331274582,1720171048350,-152.43794838,0.00040231,30]
[331274583,1720171048492,-155.9121554,0.00040399,30]
[331274584,1720171048544,-154.07702162,0.00040491,30]
[331274585,1720171048599,-1425.18957857,0.00040512,30]
[331274586,1720171049354,-230.80568432,0.00040699,30]
[331274587,1720171050382,-2003.0,0.000407,81]
[331274588,1720171050616,-154.12287166,0.00040758,30]
[331274589,1720171051086,-154.12287166,0.0004087,30]
[331274590,1720171051793,-154.12287166,0.00040923,30]
[331274591,1720171052427,-153.39460382,0.0004115,30]
[331274592,1720171052699,-161.24092992,0.000412,30]
[331274593,1720171053286,-154.07702162,0.0004121,30]
[331274594,1720171053744,-169.58254383,0.00041455,30]
[331274595,1720171054527,-612.79753111,0.00041467,30]
[331274596,1720171055129,-292.95919972,0.0004148,30]
[331274597,1720171055625,-169.58254385,0.00041677,30]
[331274598,1720171055863,-152.43794838,0.00041687,30]
[331274599,1720171056085,-230.80568432,0.00041794,30]
[331274600,1720171056318,-151.70134449,0.00041823,30]
[331274601,1720171056365,-1040.0,0.000419,30]
[331274602,1720171056418,-152.25934322,0.00041901,30]
[331274603,1720171056467,-177.62263512,0.0004196,30]
[331274604,1720171056518,-1425.18957857,0.00041968,30]
[331274605,1720171056570,-1425.18957857,0.00041976,30]
[331274606,1720171056621,-154.07702162,0.00042257,30]
[331274607,1720171056790,-154.45366859,0.00042264,30]
[331274608,1720171056838,-152.43794838,0.00042316,30]
[331274609,1720171056887,-154.12287166,0.00042441,30]
[331274610,1720171056937,-1425.18957857,0.00042708,30]
[331274611,1720171056987,-166.66666666,0.00042744,30]
[331274612,1720171057038,-150.12320196,0.00043088,30]
[331274613,1720171057088,-160.22897509,0.0004327,30]
[331274614,1720171057138,-166.66666666,0.00043292,30]
[331274615,1720171057186,-612.79753111,0.00043387,30]
[331274616,1720171057234,-166.66666666,0.00043408,30]
[331274617,1720171057283,-154.12287166,0.00043871,30]
[331274618,1720171057332,-160.22897509,0.00043887,30]
[331274619,1720171057385,-230.80568432,0.00043996,30]
[331274620,1720171057437,-655.043625,0.00044,57]
[331274621,1720171057489,-1040.0,0.00044106,30]
[331274622,1720171057705,-154.07702162,0.00044123,30]
[331274623,1720171057758,-154.12287166,0.00044161,30]
[331274624,1720171057813,-181.4384458,0.00044193,30]
[331274625,1720171057863,-153.39460382,0.00044209,30]
[331274626,1720171057938,-151.70134449,0.00044288,30]
[331274627,1720171057989,-612.79753111,0.000443,30]
[331274628,1720171058038,-202.52,0.0004438,120]
[331274629,1720171058090,-156.78456305,0.0004438,120]
[331274630,1720171058144,-156.78456305,0.0004438,120]
[331274631,1720171058196,-156.78456305,0.0004438,120]
[331274632,1720171058249,-156.78456305,0.0004438,120]
[331274633,1720171058302,-156.78456305,0.0004438,120]
[331274634,1720171058356,-156.78456305,0.0004438,120]
[331274635,1720171058416,-156.78456305,0.0004438,120]
[331274636,1720171058467,-156.78456305,0.0004438,120]
[331274637,1720171058516,-156.78456305,0.0004438,120]
[331274638,1720171058568,-156.78456305,0.0004438,120]
[331274639,1720171058620,-156.78456305,0.0004438,120]
[331274640,1720171058672,-156.78456305,0.0004438,120]
[331274641,1720171058723,-156.78456305,0.0004438,120]
[331274642,1720171058779,-156.78456305,0.0004438,120]
[331274643,1720171058829,-156.78456305,0.0004438,120]
[331274644,1720171058881,-156.78456305,0.0004438,120]
[331274645,1720171058932,-156.78456305,0.0004438,120]
[331274646,1720171058982,-157.28,0.0004438,120]
[331274647,1720171059033,-156.04827477,0.0004438,120]
[331274648,1720171059084,-156.04827477,0.0004438,120]
[331274649,1720171059137,-156.04827477,0.0004438,120]
[331274650,1720171059189,-156.04827477,0.0004438,120]
[331274651,1720171059240,-156.04827477,0.0004438,120]
[331274652,1720171059293,-156.04827477,0.0004438,120]
[331274653,1720171059345,-156.04827477,0.0004438,120]
[331274654,1720171059412,-156.04827477,0.0004438,120]
[331274655,1720171059477,-156.04827477,0.0004438,120]
[331274656,1720171059819,-156.04827477,0.0004438,120]
[331274657,1720171061106,-156.04827477,0.0004438,120]
[331274658,1720171061558,-156.04827477,0.0004438,120]
[331274659,1720171061620,-156.04827477,0.0004438,120]
[331274660,1720171061672,-156.04827477,0.0004438,120]
[331274661,1720171061821,-156.54,0.0004438,120]
[331274662,1720171061870,-158.4378626,0.0004438,120]
[331274663,1720171061919,-158.4378626,0.0004438,120]
[331274664,1720171062121,-158.4378626,0.0004438,120]
[331274665,1720171062173,-158.4378626,0.0004438,120]
[331274666,1720171062222,-158.4378626,0.0004438,120]
[331274667,1720171062272,-158.4378626,0.0004438,120]
[331274668,1720171062373,-158.4378626,0.0004438,120]
[331274669,1720171062425,-158.4378626,0.0004438,120]
[331274670,1720171062475,-158.4378626,0.0004438,120]
[331274671,1720171062666,-158.4378626,0.0004438,120]
[331274672,1720171062717,-158.4378626,0.0004438,120]
[331274673,1720171062768,-158.4378626,0.0004438,120]
[331274674,1720171062938,-158.4378626,0.0004438,120]
[331274675,1720171062991,-158.4378626,0.0004438,120]
[331274676,1720171063042,-158.4378626,0.0004438,120]
[331274677,1720171063093,-158.4378626,0.0004438,120]
[331274678,1720171063146,-158.4378626,0.0004438,120]
[331274679,1720171063206,-158.4378626,0.0004438,120]
[331274680,1720171063259,-158.4378626,0.0004438,120]
[331274681,1720171063311,-158.93,0.0004438,120]
[331274682,1720171063363,-230.80568432,0.00044587,30]
[331274683,1720171063420,-230.80568432,0.00044613,30]
[331274684,1720171063474,-153.39460382,0.00044655,30]
[331274685,1720171063540,-151.10791818,0.00044685,30]
[331274686,1720171063833,-152.25934322,0.00044696,30]
[331274687,1720171064134,-612.79753111,0.00044856,30]
[331274688,1720171064447,-154.12287166,0.00044935,30]
[331274689,1720171064818,-4406.6,0.00045005,106]
[331274690,1720171065083,-154.07702162,0.00045404,30]
[331274691,1720171065332,-491.0,0.000455,33]
[331274692,1720171065573,-151.1,0.00045717,31]
[331274693,1720171065821,-1425.18957857,0.00045798,30]
[331274694,1720171066065,-230.80568432,0.00045809,30]
[331274695,1720171066319,-153.04733511,0.00045893,30]
[331274696,1720171066803,-152.0,0.00046322,31]
[331274697,1720171067344,-152.43794838,0.00046351,30]
[331274698,1720171067620,-1040.0,0.00046427,30]
[331274699,1720171067673,-154.12287166,0.00046549,30]
[331274700,1720171067724,-1425.18957857,0.00046587,30]
[331274701,1720171067777,-230.80568432,0.00046635,30]
[331274702,1720171067829,-612.79753111,0.00046655,30]
[331274703,1720171067880,-179.34587018,0.00046764,30]
[331274704,1720171067934,-152.0,0.00046927,60]
[331274705,1720171067984,-150.12320196,0.00047028,30]
[331274706,1720171068560,-612.79753111,0.00047119,30]
[331274707,1720171069132,-154.12287166,0.00047157,30]
[331274708,1720171069700,-209.0,0.0004729,30]
[331274709,1720171070037,-230.80568432,0.00047472,30]
[331274710,1720171071070,-171.07734358,0.00047597,30]
[331274711,1720171071630,-150.12320196,0.00047916,30]
[331274712,1720171071909,-152.26275179,0.00047986,30]
[331274713,1720171072467,-151.10791818,0.00048154,30]
[331274714,1720171073003,-177.41107583,0.00048438,30]
[331274715,1720171073562,-153.39460382,0.00048471,30]
[331274716,1720171074175,-612.79753111,0.00048537,30]
[331274717,1720171074229,-1425.18957857,0.00048556,30]
[331274718,1720171074279,-1013.28,0.000487,31]
[331274719,1720171074330,-177.41107583,0.00048826,30]
[331274720,1720171074381,-1040.0,0.0004887,30]
[331274721,1720171074436,-154.44696557,0.00048995,30]
[331274722,1720171074488,-50000.0,0.00049,39]
[331274723,1720171074542,-50000.0,0.00049,49]
[331274724,1720171074593,-173.0,0.00049,90]
[331274725,1720171074651,-154.12287166,0.00049002,30]
[331274726,1720171074899,-209.0,0.0004903,30]
[331274727,1720171075148,-151.10791818,0.00049171,30]
[331274728,1720171075469,-154.07702162,0.0004927,30]
[331274729,1720171075529,-4808.4,0.00049311,117]
[331274730,1720171075935,-612.79753111,0.00049688,30]
[331274731,1720171075991,-253.60039057,0.000498,120]
[331274732,1720171076047,-1425.18957857,0.00049923,30]
[331274733,1720171076104,-230.80568432,0.00049963,30]
[331274734,1720171076158,-513.18694923,0.00049972,90]
[331274735,1720171076216,-500.0,0.00049972,90]
[331274736,1720171076286,-500.0,0.00049972,90]
[331274737,1720171076356,-500.0,0.00049972,90]
[331274738,1720171076413,-50000.0,0.0005,40]
[331274739,1720171076468,-50000.0,0.0005,50]
[331274740,1720171077375,-200.0,0.0005,120]
[331274741,1720171077914,-200.0,0.0005,120]
[331274742,1720171078183,-153.39460382,0.0005001,60]
[331274743,1720171078236,-612.79753111,0.00050048,60]
[331274744,1720171078286,-152.25934322,0.00050052,60]
[331274745,1720171078338,-154.12287166,0.00050098,60]
[331274746,1720171078393,-154.12287166,0.00050308,60]
[331274747,1720171078447,-1958.44,0.0005041,45]
[331274748,1720171078503,-503.98333009,0.0005052,90]
[331274749,1720171078556,-150.1314368,0.00050595,60]
[331274750,1720171078612,-612.79753111,0.00050648,60]
[331274751,1720171078668,-152.26275179,0.00050678,60]
[331274752,1720171078723,-612.79753111,0.00050736,60]
[331274753,1720171079293,-612.79753111,0.00050742,60]
[331274754,1720171080207,-209.0,0.0005077,30]
[331274755,1720171080892,-209.0,0.0005077,30]
[331274756,1720171081157,-612.79753111,0.00050866,60]
[331274757,1720171081228,-159.7588026,0.00050939,60]
[331274758,1720171081301,-50000.0,0.00051,51]
[331274759,1720171081499,-150.12320196,0.00051282,60]
[331274760,1720171081555,-1425.18957857,0.00051353,60]
[331274761,1720171081609,-1040.0,0.00051443,30]
[331274762,1720171081665,-166.6666667,0.00051493,60]
[331274763,1720171081720,-1425.18957857,0.000515,60]
[331274764,1720171081777,-169.49043182,0.00051523,60]
[331274765,1720171081836,-230.80568432,0.00051634,60]
[331274766,1720171081890,-153.39460382,0.00051642,60]
[331274767,1720171081942,-270.64567808,0.00051655,120]
[331274768,1720171081998,-153.39460382,0.00051661,60]
[331274769,1720171082054,-173.0,0.00051781,120]
[331274770,1720171082113,-50000.0,0.00052,52]
[331274771,1720171082168,-1425.18957857,0.00052139,60]
[331274772,1720171082704,-166.6666667,0.00052349,60]
[331274773,1720171082766,-612.79753111,0.00052398,60]
[331274774,1720171082843,-886000.0,0.000525,120]
[331274775,1720171082946,-209.0,0.0005252,30]
[331274776,1720171083201,-209.0,0.0005252,30]
[331274777,1720171084016,-154.07702162,0.00052562,60]
[331274778,1720171084711,-1425.18957857,0.0005259,60]
[331274779,1720171085292,-154.12287166,0.00052614,60]
[331274780,1720171086097,-152.25934322,0.00052635,60]
[331274781,1720171086484,-151.21328005,0.00052714,60]
[331274782,1720171087543,-166.66666666,0.00052876,60]
[331274783,1720171088453,-1425.18957868,0.00052891,60]
[331274784,1720171088691,-50000.0,0.00053,53]
[331274785,1720171088744,-200.0,0.00053,31]
[331274786,1720171088794,-153.39460382,0.00053017,60]
[331274787,1720171088843,-153.39460405,0.00053569,60]
[331274788,1720171088907,-5209.1,0.00053616,117]
[331274789,1720171089078,-161.24092992,0.00053621,60]
[331274790,1720171089142,-151.10791818,0.00053675,60]
[331274791,1720171089200,-1090.55739991,0.00053698,30]
[331274792,1720171089644,-1141.72465485,0.00053698,30]
[331274793,1720171089905,-1146.9091832,0.00053698,30]
[331274794,1720171090128,-230.80568432,0.00053821,60]
[331274795,1720171090564,-50000.0,0.00054,54]
[331274796,1720171090631,-612.79753111,0.00054002,60]
[331274797,1720171090760,-154.0770218,0.00054068,60]
[331274798,1720171090815,-154.12287169,0.0005409,60]
[331274799,1720171090877,-612.79753138,0.00054107,60]
[331274800,1720171090930,-1040.0,0.0005415,30]
[331274801,1720171091194,-209.0,0.0005426,30]
[331274802,1720171091407,-209.0,0.0005426,30]
[331274803,1720171091877,-230.80568432,0.00054345,60]
[331274804,1720171092448,-152.25934322,0.00054474,60]
[331274805,1720171092927,-166.6666667,0.0005457,60]
[331274806,1720171094074,-230.80568459,0.0005468,60]
[331274807,1720171094667,-528.58,0.0005479,120]
[331274808,1720171094980,-528.58,0.0005479,120]
[331274809,1720171095040,-500.0,0.00054794,120]
[331274810,1720171095090,-500.0,0.00054794,120]
[331274811,1720171095139,-166.18336124,0.00054794,120]
[331274812,1720171095239,-500.0,0.00054794,120]
[331274813,1720171095290,-500.0,0.00054794,120]
[331274814,1720171095466,-500.0,0.00054794,120]
[331274815,1720171095517,-500.0,0.00054794,120]
[331274816,1720171095683,-500.0,0.00054794,120]
[331274817,1720171095734,-500.0,0.00054794,120]
[331274818,1720171096039,-496.24683246,0.00054794,120]
[331274819,1720171096102,-502.87223003,0.00054794,120]
[331274820,1720171096156,-500.0,0.00054794,120]
[331274821,1720171096206,-500.0,0.00054794,120]
[331274822,1720171096256,-500.0,0.00054794,120]
[331274823,1720171096307,-500.0,0.00054794,120]
[331274824,1720171096359,-500.0,0.00054794,120]
[331274825,1720171096414,-500.0,0.00054794,120]
[331274827,1720171096466,-500.0,0.00054794,120]
[331274829,1720171096521,-500.0,0.00054794,120]
[331274832,1720171096572,-630.17662198,0.00054794,120]
[331274835,1720171096627,-300.2019855,0.00054794,120]
[331274837,1720171096679,-1257.0,0.00054794,120]
[331274838,1720171096736,-1257.0,0.00054794,120]
[331274839,1720171096791,-1257.0,0.00054794,120]
[331274842,1720171096851,-1257.0,0.00054794,120]
[331274844,1720171096907,-500.0,0.00054794,120]
[331274846,1720171097355,-1257.0,0.00054794,120]
[331274848,1720171097841,-500.0,0.00054794,120]
[331274850,1720171098348,-1257.0,0.00054794,120]
[331274852,1720171098818,-500.0,0.00054794,120]
[331274854,1720171099378,-1257.0,0.00054794,120]
[331274857,1720171099440,-1257.0,0.00054794,120]
[331274861,1720171099504,-500.0,0.00054794,120]
[331274864,1720171099563,-1257.0,0.00054794,120]
[331274866,1720171099617,-500.0,0.00054794,120]
[331274869,1720171099671,-1257.0,0.00054794,120]
[331274872,1720171099728,-500.0,0.00054794,120]
[331274876,1720171100719,-731.47,0.00054794,120]
[331274879,1720171101945,-1257.0,0.00054794,120]
[331274881,1720171103182,-501.88632205,0.00054794,120]
[331274884,1720171103475,-1257.0,0.00054794,120]
[331274887,1720171103531,-1257.0,0.00054794,120]
[331274890,1720171103592,-1257.0,0.00054794,120]
[331274893,1720171103648,-1257.0,0.00054794,120]
[331274896,1720171103702,-1257.0,0.00054794,120]
[331274899,1720171103759,-1257.0,0.00054794,120]
[331274901,1720171103815,-1257.0,0.00054794,120]
[331274904,1720171103872,-1257.0,0.00054794,120]
[331274907,1720171103926,-1257.0,0.00054794,120]
[331274909,1720171103977,-1257.0,0.00054794,120]
[331274911,1720171104982,-1257.0,0.00054794,120]
[331274914,1720171105615,-1257.0,0.00054794,120]
[331274916,1720171105992,-1257.08049802,0.00054794,120]
[331274919,1720171106051,-409.34334458,0.00054794,120]
[331274921,1720171106103,-500.0,0.00054794,120]
[331274923,1720171106154,-500.0,0.00054794,120]
[331274925,1720171106367,-500.0,0.00054794,120]
[331274928,1720171106427,-500.0,0.00054794,120]
[331274930,1720171106479,-500.0,0.00054794,120]
[331274933,1720171106629,-283.91973065,0.00054794,120]
[331274935,1720171106687,-500.0,0.00054794,120]
[331274938,1720171107044,-500.0,0.00054794,120]
[331274941,1720171107099,-500.0,0.00054794,120]
[331274944,1720171107151,-500.0,0.00054794,120]
[331274946,1720171107206,-500.0,0.00054794,120]
[331274949,1720171107257,-500.0,0.00054794,120]
[331274951,1720171107617,-500.0,0.00054794,120]
[331274953,1720171107930,-500.0,0.00054794,120]
[331274954,1720171108189,-500.0,0.00054794,120]
[331274958,1720171108695,-500.0,0.00054794,120]
[331274960,1720171108997,-500.0,0.00054794,120]
[331274963,1720171109280,-500.0,0.00054794,120]
[331274966,1720171109340,-500.0,0.00054794,120]
[331274969,1720171109546,-500.0,0.00054794,120]
[331274972,1720171109605,-500.0,0.00054794,120]
[331274974,1720171109659,-607.77675424,0.00054794,120]
[331274976,1720171109820,-1156.3,0.00054794,120]
[331274979,1720171109880,-1156.3,0.00054794,120]
[331274981,1720171109938,-1156.3,0.00054794,120]
[331274984,1720171109993,-1156.3,0.00054794,120]
[331274986,1720171110053,-500.0,0.00054794,120]
[331274989,1720171110118,-500.0,0.00054794,120]
[331274990,1720171110300,-1156.3,0.00054794,120]
[331274991,1720171110484,-500.0,0.00054794,120]
[331274992,1720171110907,-254.92210746,0.00054794,120]
[331274994,1720171111613,-1156.3,0.00054794,120]
[331274996,1720171112038,-1156.3,0.00054794,120]
[331274998,1720171112420,-1156.3,0.00054794,120]
[331275000,1720171113281,-1156.3,0.00054794,120]
[331275002,1720171113936,-1156.3,0.00054794,120]
[331275003,1720171114134,-1156.3,0.00054794,120]
[331275004,1720171114192,-1156.3,0.00054794,120]
[331275006,1720171114245,-1156.3,0.00054794,120]
[331275008,1720171114537,-1156.3,0.00054794,120]
[331275011,1720171114595,-1156.3,0.00054794,120]
[331275014,1720171114647,-1156.3,0.00054794,120]
[331275015,1720171114700,-1156.3,0.00054794,120]
[331275016,1720171114754,-1156.3,0.00054794,120]
[331275017,1720171114808,-1156.3,0.00054794,120]
[331275019,1720171114861,-1156.3,0.00054794,120]
[331275022,1720171114916,-1156.3,0.00054794,120]
[331275024,1720171115480,-1156.3,0.00054794,120]
[331275026,1720171115965,-1156.3,0.00054794,120]
[331275027,1720171116185,-1156.41497222,0.00054794,120]
[331275030,1720171116662,-741.95,0.00054794,120]
[331275032,1720171116715,-741.95,0.00054794,120]
[331275035,1720171116768,-741.95,0.00054794,120]
[331275038,1720171116820,-741.95,0.00054794,120]
[331275041,1720171116879,-741.95,0.00054794,120]
[331275043,1720171116930,-741.95,0.00054794,120]
[331275046,1720171116983,-741.95,0.00054794,120]
[331275049,1720171117033,-741.95,0.00054794,120]
[331275051,1720171117085,-741.95,0.00054794,120]